Cogmind - Beta 17 @@@ ROGUE MODE // 2026.07.26 @ 04:47:45 Player: naththebg Result: Destroyed by G-50 Soldier with Heavy Laser Performance ------------- Evolutions (5) 2500 Regions Visited (17) 3400 Robots Destroyed (257) 1285 Value Destroyed (14008) 14008 Prototype IDs (30) 600 Alien Tech Used (0) 0 Bonus (24999) 24999 TOTAL SCORE: 46792 Bonus ------- Triggered High Security 500 High Alert Combat Kills 5240 Follower Combat Kills 3585 Prayed to X0-1V1 5000 Major X0-1V1 Interference 6300 Entered Garrisons 1200 Used RIF Installer 3500 Friendly Fire -326 Cogmind --------- Core Integrity 0/1000 Matter 800/800 Energy 53/100 System Corruption 9% Temperature Cool (9) Movement Hovering (52) Location -5/Factory Parts ------- > --- POWER (2) -------- (None) > --- PROPULSION (4) --- Experimental Gyrokinetic Inverter Experimental Gyrokinetic Inverter Experimental Gyrokinetic Inverter > --- UTILITY (9) ------ 0b10 Decoder Chip [Skirmisher] Relay Coupler [NC] (36) > --- WEAPON (4) ------- Heavy Hardcell Cannon > --- INVENTORY (5) ---- Large Storage Unit Matter Compressor (250) Advanced Point Defense System Hardcell Cannon Advanced Remote Datajack Peak State ------------ > --- POWER ------------ Neutrino Core Light Antimatter Reactor > --- PROPULSION ------- Improved Heavy Treads Armored Heavy Treads > --- UTILITY ---------- Large Storage Unit Experimental Core Analyzer Improved Kinecellerator Layered Heavy Armor Plating Remote Force Field Relay Coupler [C] Relay Coupler [C] X0-1V1's Piety Tracker > --- WEAPON ----------- Hardcell Cannon Advanced Remote Datajack > --- INVENTORY -------- Neutrino Core Advanced Heat Sink Matter Compressor Improved Weapon Cycler Improved Medium Armor Plating Improved Force Field Relay Coupler [NC] Relay Coupler [NC] Relay Coupler [Sentry] Relay Coupler [Hunter] Long-range Tractor Beam Heavy Linear Accelerator Heavy Rocket Launcher Advanced Remote Datajack [Rating: 129] Favorites ----------- Power Light Quantum Reactor Engine Improved Deuterium Engine Power Core Neutrino Core Reactor Light Quantum Reactor Propulsion Carbon-fiber Leg Treads Light Treads Leg Carbon-fiber Leg Wheel Armored Huge Wheel Hover Unit Experimental Gyrokinetic Inverter Utility X0-1V1's Piety Tracker Device X0-1V1's Piety Tracker Storage Large Storage Unit Processor Improved Targeting Computer Hackware Relay Coupler [C] Protection Hardened Medium Armor Plating Weapon Heavy Linear Accelerator Energy Gun Medium Laser Energy Cannon Beam Cannon Ballistic Gun Minigun Ballistic Cannon Heavy Linear Accelerator Launcher Heavy Rocket Launcher Special Weapon Advanced Remote Datajack Build | -11 -10 -10 -10 -9 -8 -8 -7 -7 -7 -7 -6 -6 -6 -6 -5 -5 -5 ------- Run | Yrd Mat Min Exi Min Mat Gar Fac Gar Fac Gar Fac Gar Fac Gar Fac Gar Fac Slots Evolved 10 | . . . . . 4 . 2 . . . 2 . . . 2 . . Power . | . . . . . . . . . . . . . . . . . . Propulsion 3 | . . . . . 1 . 1 . . . . . . . 1 . . Utility 6 | . . . . . 2 . 1 . . . 2 . . . 1 . . Weapon 1 | . . . . . 1 . . . . . . . . . . . . Parts Attached 208 | 6 11 . . 7 13 17 10 21 12 26 9 14 2 5 21 13 21 Power 22 | 1 1 . . 1 2 2 1 1 . 2 . 2 . . 4 2 3 Engine 7 | 1 1 . . 1 . 1 . 1 . . . . . . 1 . 1 Core 8 | . . . . . 2 1 1 . . 1 . . . . 3 . . Reactor 7 | . . . . . . . . . . 1 . 2 . . . 2 2 Propulsion 47 | 2 2 . . 2 4 3 4 5 4 7 1 2 1 1 2 2 5 Treads 19 | . 2 . . 2 2 . . 2 2 . . 2 1 1 2 2 1 Leg 20 | 2 . . . . . 3 4 2 . 7 1 . . . . . 1 Wheel 5 | . . . . . 2 . . 1 2 . . . . . . . . Hover 3 | . . . . . . . . . . . . . . . . . 3 Flight . | . . . . . . . . . . . . . . . . . . Utility 94 | 1 5 . . . 6 5 5 6 6 12 7 7 1 4 14 8 7 Device 41 | . 2 . . . 4 2 2 1 3 8 2 3 . 1 8 2 3 Storage 9 | 1 2 . . . . 2 . . . . 3 . . . . 1 . Processor 6 | . . . . . . . 2 . . . 1 . . . 2 . 1 Hackware 24 | . . . . . 1 . . 3 2 4 . 3 . 2 1 5 3 Protection 14 | . 1 . . . 1 1 1 2 1 . 1 1 1 1 3 . . Artifact . | . . . . . . . . . . . . . . . . . . Weapon 45 | 2 3 . . 4 1 7 . 9 2 5 1 3 . . 1 1 6 Energy Gun 4 | 2 . . . . 1 1 . . . . . . . . . . . Energy Cannon 3 | . 2 . . . . . . . . 1 . . . . . . . Ballistic Gun 14 | . . . . 4 . 5 . 4 . 1 . . . . . . . Ballistic Cannon 13 | . . . . . . . . 4 . 2 . . . . 1 1 5 Launcher 5 | . 1 . . . . 1 . . 1 1 . . . . . . 1 Special Weapon 6 | . . . . . . . . 1 1 . 1 3 . . . . . Impact Weapon . | . . . . . . . . . . . . . . . . . . Slashing Weapon . | . . . . . . . . . . . . . . . . . . Piercing Weapon . | . . . . . . . . . . . . . . . . . . Special Melee Weapon . | . . . . . . . . . . . . . . . . . . Unidentified Prototypes 6 | . 1 . . . . . . . . . . . . . . . 5 Parts Lost 87 | . 2 . . 5 7 5 . 9 13 4 . 2 1 1 11 . 27 Power 16 | . 1 . . 1 1 . . 1 2 1 . 1 . . 4 . 4 Propulsion 25 | . . . . 2 3 3 . 4 5 1 . . . . 2 . 5 Utility 28 | . . . . . 2 1 . 2 2 2 . 1 1 1 5 . 11 Weapon 18 | . 1 . . 2 1 1 . 2 4 . . . . . . . 7 Highest Loss Streak 14 | . 2 . . 4 2 3 . 3 7 2 . 1 1 1 7 . 14 To Critical Strikes . | . . . . . . . . . . . . . . . . . . Average Backups 12 | 3 11 15 14 11 14 16 19 15 17 3 9 11 11 11 10 14 11 Power . | . . . . . . 1 1 . . . . . . . . 1 . Propulsion 2 | 2 5 6 6 5 5 2 2 . . . 3 2 3 3 1 . . Utility 5 | . 1 3 2 2 5 8 7 8 12 1 3 5 6 6 5 8 6 Weapon 3 | . 3 6 6 4 3 4 6 4 3 1 2 1 1 . 1 2 2 Tool/Special . | . . . . . . . . . . . . . . . . . . Unused Backups 45 | . 2 . . . 4 1 3 2 10 1 2 8 . . . 8 4 Power 2 | . . . . . . . . . 1 . . . . . . . 1 Propulsion 10 | . . . . . 4 1 . . . . 1 4 . . . . . Utility 22 | . . . . . . . 3 . 9 1 1 2 . . . 3 3 Weapon 9 | . 2 . . . . . . 2 . . . 1 . . . 4 . Tool/Special 2 | . . . . . . . . . . . . 1 . . . 1 . Average Slot Usage (%) 83 | . 99 100 71 91 87 96 97 88 74 69 92 80 75 71 73 78 71 Engine 3 | . 14 14 14 8 3 2 . 4 5 . . . . . 3 . 3 Core 2 | . . . . . 3 6 7 2 . 2 . . . . 2 4 . Reactor 2 | . . . . . . . . . . . 6 6 6 6 1 5 5 Treads 9 | . 18 28 28 27 9 8 . 4 9 5 . 10 11 13 10 11 9 Leg 8 | . 9 . . . . 14 30 19 . 11 26 4 . . . . . Device 16 | . 7 14 14 14 20 17 22 10 11 17 20 16 16 13 14 22 16 Storage 6 | . 14 14 14 14 9 9 7 7 6 . 5 6 6 6 5 5 4 Processor 2 | . . . . . . . 3 7 6 . 3 . . . 4 3 . Hackware 8 | . . . . . 1 . . 6 9 16 13 13 13 11 12 7 13 Protection 4 | . 6 . . . 3 9 1 2 . . 2 9 6 6 3 5 3 Energy Gun 2 | . 17 . . . 2 8 . . . . . . . . . . . Energy Cannon 2 | . 10 28 . . 13 5 . . . 3 . . . . . . . Ballistic Gun 3 | . . . . 24 8 13 23 2 . . 1 . . . . . . Ballistic Cannon 3 | . . . . . . . . 5 6 6 6 5 6 5 4 4 4 Special Weapon 2 | . . . . . . . . 6 5 . 4 4 6 5 4 2 3 Peak Build Rating 129 | 6 20 20 20 22 33 47 55 75 73 102 109 111 99 103 115 129 123 Average Rating 73 | 3 9 20 18 21 28 38 52 66 63 59 102 105 97 96 102 123 106 On Entrance 56 | . 6 20 20 18 22 33 46 55 69 12 102 100 96 97 96 110 123 Avg Prop Armor Cover (%) 9 | . . . . . 13 10 . 9 15 10 4 . 7 . . . 10 Naked Turns 19 | . . . . . . . . . 19 . . . . . . . . Heaviest Build 108 | 14 32 30 24 32 46 67 66 89 82 52 88 106 90 89 84 108 107 Greatest Support 145 | 20 40 40 40 40 40 40 60 60 54 112 112 145 90 98 145 140 140 Greatest Overweight (x) 4 | 1 1 . . . 2 3 1 4 4 1 1 1 1 . . . 1 Average Overweight (x) . | . . . . . 1 1 . 1 1 . . . . . . . . Largest Inventory Capacity 30 | 8 15 15 15 15 15 20 20 20 20 5 30 15 15 15 15 15 15 Average Capacity 14 | 7 12 15 15 15 15 19 20 20 19 5 11 15 15 15 15 15 14 Most Carried 20 | 6 15 15 15 15 15 20 20 20 20 5 15 15 15 15 15 15 15 Average Carried 13 | 4 11 15 14 11 14 16 19 17 18 4 11 14 14 14 11 14 13 Final Capacity 20 | 8 15 15 15 15 15 20 20 20 5 5 15 15 15 15 15 15 5 Final Carried 20 | 6 15 15 15 13 15 19 20 19 5 5 15 15 14 15 12 15 5 Class Distribution -------------------- 19% | Botlord-Mutant 14% | Scavenger-Tank 14% | Mutant 13% | Scavenger-Gunner 12% | Bothacker-Gunner 5% | Bothacker-Tank 5% | Botlord-Tank 4% | Commander-Tank 4% | Gunner 3% | Bothacker-Mutant Dominant Class ---------------- Mutant | -10/Materials Mutant | -10/Mines Mutant | -10/Exiles Mutant | -9/Mines Scavenger-Gunner | -8/Materials Scavenger-Tank | -8/Garrison Scavenger-Gunner | -7/Factory Bothacker-Gunner | -7/Garrison Bothacker-Gunner | -7/Factory Scavenger-Gunner | -7/Garrison Scavenger-Gunner | -6/Factory Bothacker-Tank | -6/Garrison Bothacker-Tank | -6/Factory Botlord-Tank | -6/Garrison Botlord-Mutant | -5/Factory Botlord-Mutant | -5/Garrison Botlord-Mutant | -5/Factory Resources | -11 -10 -10 -10 -9 -8 -8 -7 -7 -7 -7 -6 -6 -6 -6 -5 -5 -5 ----------- Run | Yrd Mat Min Exi Min Mat Gar Fac Gar Fac Gar Fac Gar Fac Gar Fac Gar Fac Matter Collected 13718 | 260 147 . . 331 493 927 556 802 1623 1054 403 1450 507 838 1629 1104 1594 Remotely 2275 | . . . . . . . . . 1078 . . . . . . . 1197 Salvage Created 8991 | . 525 . . 115 651 1118 530 546 980 420 268 755 268 583 715 744 773 Parts 393 | . 35 . . 5 25 55 30 22 57 17 8 39 11 23 28 17 21 Haulers Intercepted 9 | . 2 . . . 1 . 1 . 3 . 1 . . . . . 1 Recyclers Shooed 6 | . 1 . . . . . . . 3 . 1 . . . . . 1 Parts Field Recycled . | . . . . . . . . . . . . . . . . . . Retrieved Matter . | . . . . . . . . . . . . . . . . . . Parts Self-Destructed . | . . . . . . . . . . . . . . . . . . Prevented . | . . . . . . . . . . . . . . . . . . Parts Restored . | . . . . . . . . . . . . . . . . . . Kills | -11 -10 -10 -10 -9 -8 -8 -7 -7 -7 -7 -6 -6 -6 -6 -5 -5 -5 ------- Run | Yrd Mat Min Exi Min Mat Gar Fac Gar Fac Gar Fac Gar Fac Gar Fac Gar Fac Combat Hostiles Destroyed 225 | . 14 . . 19 13 24 8 19 10 11 9 22 7 19 20 14 16 Guns 41 | . 9 . . 3 3 16 8 2 . . . . . . . . . Cannons 133 | . 2 . . . 7 3 . 14 8 11 9 20 7 10 18 14 10 AOE 49 | . 3 . . 16 2 4 . 3 2 . . 2 . 9 2 . 6 Classes Destroyed 20 | . 6 . . 3 3 1 . 1 2 . 2 . . 1 1 . . Worker 7 | . . . . . . . . . 6 . . . 1 . . . . Builder 3 | . . . . . . . . . 2 . . . . . 1 . . Tunneler 1 | . . . . . . . . . . . 1 . . . . . . Hauler 9 | . 2 . . . 1 . 1 . 3 . 1 . . . . . 1 Recycler 11 | . 1 . . . . . 1 . 7 . . . 1 . 1 . . Mechanic 4 | . . . . . . . . . . . . . . . 2 . 2 Operator 4 | . 1 . . . . . 2 . 1 . . . . . . . . Watcher 5 | . 2 . . . . . . 1 1 . . . . . . . 1 Swarmer 36 | . 9 . . 1 . 2 . 4 2 7 . 2 2 4 2 1 . Saboteur 4 | . . . . . . . . . . . . . . 4 . . . Grunt 80 | . 5 . . 1 7 8 5 8 3 1 1 6 3 6 12 7 7 Brawler 6 | . . . . . . . . 2 . . . 1 . . 1 1 1 Duelist 7 | . . . . 1 . 1 . . . . . 1 . . 1 2 1 Protector 1 | . . . . . . . . . . . 1 . . . . . . Sentry 29 | . . . . . 3 5 . 1 . 3 2 8 2 1 . 4 . Demolisher 2 | . . . . 1 . . 1 . . . . . . . . . . Specialist 15 | . . . . . 2 4 . 4 . . . . . . . . 5 Hunter 11 | . . . . . . 1 . . 3 . . 1 . 1 2 1 2 Programmer 22 | . . . . . 1 3 2 . 2 . 5 4 . 3 2 . . Assembled 15 | . . . . 15 . . . . . . . . . . . . . Best Kill Streak 16 | . 4 . . 16 3 9 6 6 7 3 2 6 3 7 6 4 13 Combat Bots Only 16 | . 3 . . 16 3 9 3 6 3 3 2 6 3 7 3 4 11 Max Kills in Single Turn 5 | . 3 . . 4 1 2 1 3 4 1 1 2 1 5 1 1 2 Gunslinging 1 | . 1 . . . . 1 . . . . . . . . . . . Exploded 5 | . 3 . . 4 1 2 . 3 2 . . 2 . 5 1 . 2 Melee . | . . . . . . . . . . . . . . . . . . Uniques/NPCs Destroyed . | . . . . . . . . . . . . . . . . . . Combat | -11 -10 -10 -10 -9 -8 -8 -7 -7 -7 -7 -6 -6 -6 -6 -5 -5 -5 -------- Run | Yrd Mat Min Exi Min Mat Gar Fac Gar Fac Gar Fac Gar Fac Gar Fac Gar Fac Hostile Shots Fired 2110 | . 67 . . 50 79 100 20 158 260 111 72 120 115 78 195 59 626 Missed 655 | . 18 . . 12 24 32 4 46 75 46 42 61 43 22 64 17 149 Hits 1455 | . 49 . . 38 55 68 16 112 185 65 30 59 72 56 131 42 477 Melee 18 | . . . . 4 . 1 . . . 1 . 2 . . 8 1 1 Projectile 1437 | . 49 . . 34 55 67 16 112 185 64 30 57 72 56 123 41 476 AOE 23 | . . . . 20 . . 1 . . . . 2 . . . . . Critical Strikes 34 | . . . . 1 1 2 1 . 3 2 . 2 . 2 9 1 10 Part Disruptions 1 | . . . . . . . . . . . 1 . . . . . . Damage Taken 21611 | . 481 . . 1079 774 991 283 1744 2725 586 251 887 626 703 2705 698 7078 Core 3060 | . 113 . . 254 145 128 15 294 599 123 13 18 47 38 279 36 958 Absorbed by Shields 1571 | . . . . . . 12 . 10 . 253 . 116 . 108 314 590 168 Reduced by Siege Mode 725 | . . . . . . . . . . . . . . 9 175 10 531 Ignored by Resistances 526 | . . . . . . 42 16 . 64 . 22 155 32 15 111 16 53 Regen/Repaired (Parts) 721 | . . . . . . . . . 116 . 76 108 . . 274 . 147 Core Remaining (%) 66 | 100 . . . 20 . 77 . . . 48 . . . 86 . . . Volleys Fired 945 | . 69 . . 31 40 105 18 87 60 71 37 62 29 55 145 63 73 Largest 3 | . 2 . . 2 3 3 3 3 1 2 1 1 1 1 1 1 2 Hottest 185 | . 120 . . 46 185 185 75 75 70 155 70 70 70 70 70 70 136 Shots Fired 1290 | . 134 . . 46 102 231 54 115 59 77 37 62 29 55 144 63 82 Gun 441 | . 91 . . 35 36 151 54 53 . 21 . . . . . . . Cannon 685 | . 42 . . . 64 70 . 49 46 45 31 55 28 39 116 47 53 Launcher 41 | . 1 . . 11 2 10 . . 2 2 . 1 . 2 5 . 5 Special 123 | . . . . . . . . 13 11 9 6 6 1 14 23 16 24 Kinetic 765 | . . . . 35 33 63 54 102 46 63 31 55 28 39 116 47 53 Thermal 361 | . 133 . . . 67 158 . . . 3 . . . . . . . Explosive 41 | . 1 . . 11 2 10 . . 2 2 . 1 . 2 5 . 5 Electromagnetic . | . . . . . . . . . . . . . . . . . . Robot Hit Streak 45 | . 7 . . 8 15 45 19 41 5 12 16 13 11 14 18 13 16 Robot Miss Streak 7 | . 7 . . 7 3 3 4 3 4 4 1 3 2 2 3 2 2 Penetration Max 1 | . . . . . . . . . . . . . . 1 1 . . Secondary Targets 10 | . 3 . . 2 . 4 1 . . . . . . . . . . Max Gunslinging Chain 1 | . 1 . . 1 . 1 1 . . . . . . . . . . Shots Hit Robots 860 | . 70 . . 28 77 132 38 90 37 46 27 44 22 42 101 48 58 Core Hits 432 | . 31 . . 43 31 71 22 30 47 22 8 23 7 20 37 14 26 Critical Kills 1 | . . . . . . 1 . . . . . . . . . . . Critical Parts Destroyed . | . . . . . . . . . . . . . . . . . . Critical Strikes 49 | . 7 . . . 1 3 . 8 4 . 3 6 1 3 5 5 3 Burn 10 | . 7 . . . 1 2 . . . . . . . . . . . Destroy 1 | . . . . . . 1 . . . . . . . . . . . Blast 38 | . . . . . . . . 8 4 . 3 6 1 3 5 5 3 Melee Attacks . | . . . . . . . . . . . . . . . . . . Impact . | . . . . . . . . . . . . . . . . . . Slashing . | . . . . . . . . . . . . . . . . . . Piercing . | . . . . . . . . . . . . . . . . . . Sneak Attacks . | . . . . . . . . . . . . . . . . . . Combat Hostiles . | . . . . . . . . . . . . . . . . . . Follow-up Attacks . | . . . . . . . . . . . . . . . . . . Damage Inflicted 37875 | . 1205 . . 1432 1368 3209 760 3124 3621 2088 2033 3399 1661 2520 4741 2951 3763 Guns 4454 | . 617 . . 423 486 1440 705 461 . 322 . . . . . . . Cannons 27488 | . 441 . . . 804 822 . 2663 2424 1630 2022 3320 1661 2037 4120 2945 2599 Explosions 5656 | . 130 . . 990 78 933 . . 1160 136 . 79 . 442 589 . 1119 Melee . | . . . . . . . . . . . . . . . . . . Ramming 277 | . 17 . . 19 . 14 55 . 37 . 11 . . 41 32 6 45 Kinetic 28424 | . . . . 423 457 635 705 3124 2424 1952 2022 3320 1661 2037 4120 2945 2599 Thermal 3944 | . 1058 . . . 833 1627 . . . . . . . . . . 426 Explosive 4921 | . 130 . . 990 78 933 . . 851 136 . 79 . 442 589 . 693 Electromagnetic 309 | . . . . . . . . . 309 . . . . . . . . Impact . | . . . . . . . . . . . . . . . . . . Slashing . | . . . . . . . . . . . . . . . . . . Piercing . | . . . . . . . . . . . . . . . . . . Highest Corruption 18 | . 2 2 2 2 1 2 . 12 18 18 2 16 4 4 10 4 7 Average Corruption 6 | . 2 2 2 2 1 1 . 12 14 18 1 2 4 4 6 3 4 Corruption Purged 10 | . . . . . . . . . . . . . . . 10 . . Corruption Blocked . | . . . . . . . . . . . . . . . . . . Effects 245 | . 12 2 6 4 2 7 . 20 42 58 7 8 10 13 26 4 24 Message Errors 52 | . 2 . 1 . . 2 . 3 9 8 3 2 2 1 11 . 8 Matter Fused 60 | . 5 1 1 2 . 2 . 3 10 16 2 1 4 4 4 1 4 Heat Flow Errors 32 | . . . . . 1 1 . 4 5 9 . 2 3 2 2 3 . Energy Discharges 25 | . 1 . 1 1 . 1 . 4 5 5 . 1 . 3 2 . 1 Parts Rejected 1 | . . . . . . . . . 1 . . . . . . . . Parts Fused 5 | . . . . . . . . . . 4 . 1 . . . . . Data Loss (minor) 27 | . 2 1 1 . 1 . . 3 1 9 1 1 1 1 1 . 4 Data Loss (major) 12 | . . . 2 . . . . 1 2 . 1 . . 2 2 . 2 Misfires 13 | . 1 . . . . 1 . 1 2 5 . . . . 1 . 2 Alerts 5 | . . . . . . . . 1 . 2 . . . . 1 . 1 Misdirections 4 | . . . . . . . . . 4 . . . . . . . . Weapon Failures 9 | . 1 . . 1 . . . . 3 . . . . . 2 . 2 Overload Shots . | . . . . . . . . . . . . . . . . . . Overflow Damage 2666 | . . . . 39 . 21 4 405 353 107 402 331 136 230 219 229 190 Projectiles 2548 | . . . . . . 21 . 405 353 99 402 331 136 207 202 229 163 Explosions 101 | . . . . 39 . . . . . 8 . . . 23 17 . 14 Melee 17 | . . . . . . . 4 . . . . . . . . . 13 Knockbacks 112 | . . . . . . . 1 14 8 3 2 11 4 7 30 13 19 Impact 4 | . . . . . . . 1 . 1 . . . . 1 . . 1 Kinetic 96 | . . . . . . . . 14 7 3 2 10 4 4 28 10 14 Secondary 12 | . . . . . . . . . . . . 1 . 2 2 3 4 Self-Inflicted Damage 447 | . . . . 34 . 31 . . 116 49 . . . 6 211 . . Shots 11 | . . . . 2 . 2 . . 1 1 . . . 1 4 . . Rammed 26 | . 3 . . 5 . . . . 5 . . . 1 6 3 1 2 Targets Rammed 40 | . 5 . . 5 . 4 4 . 5 . 4 . 1 6 3 1 2 Kicked 14 | . 2 . . . . 4 4 . . . 4 . . . . . . Crushed . | . . . . . . . . . . . . . . . . . . Highest Temperature 383 | . 325 . . 11 297 344 10 272 237 258 6 311 229 288 194 332 383 Average Temperature 83 | . 96 . . 6 130 96 3 67 51 61 6 105 69 84 26 82 87 Received Heat Transfer 4567 | . 162 . . 38 252 252 108 303 258 59 72 192 192 60 513 98 2008 Effects 11 | . 2 . . . . 4 . . . . . . . . . 4 1 Energy Bleed 5 | . 1 . . . . 3 . . . . . . . . . . 1 Interference 5 | . 1 . . . . . . . . . . . . . . 4 . Matter Decay 1 | . . . . . . 1 . . . . . . . . . . . Siege Activations 10 | . . . . . . . . . . . . . 2 1 3 2 2 Total Turns 194 | . . . . . . . . . . . . . 8 60 69 14 43 Longest Duration 60 | . . . . . . . . . . . . . 5 60 43 8 22 Martial Activations . | . . . . . . . . . . . . . . . . . . Shielding Activations . | . . . . . . . . . . . . . . . . . . Robots Disrupted . | . . . . . . . . . . . . . . . . . . Combat Hostiles . | . . . . . . . . . . . . . . . . . . Robots Corrupted 1 | . . . . . . . . . . . . . . . . . 1 Combat Hostiles . | . . . . . . . . . . . . . . . . . . Parts Fried 2 | . . . . . . . . . . . . . . . . . 2 Impact Corruptions 3 | . . . . . . . 1 . . . . . . . . . 2 Robots Melted 3 | . . . . . 1 2 . . . . . . . . . . . Combat Hostiles 2 | . . . . . 1 1 . . . . . . . . . . . Parts Melted 15 | . 7 . . . 2 5 . 1 . . . . . . . . . Heat Transferred 8973 | . 3182 . . . 1776 3740 . . . . . . . . . . 275 Parts Sabotaged . | . . . . . . . . . . . . . . . . . . Parts Stolen . | . . . . . . . . . . . . . . . . . . Parts Stripped . | . . . . . . . . . . . . . . . . . . Power Chain Reactions 1 | . . . . . . . . . 1 . . . . . . . . Alert | -11 -10 -10 -10 -9 -8 -8 -7 -7 -7 -7 -6 -6 -6 -6 -5 -5 -5 ------- Run | Yrd Mat Min Exi Min Mat Gar Fac Gar Fac Gar Fac Gar Fac Gar Fac Gar Fac Maximum Alert Level 5 | . . . . . 1 4 2 3 3 3 2 5 3 5 5 5 5 Low Security (%) 14 | 100 100 100 . 100 68 7 45 . . . . . . . . . . Level 1 12 | . . . . . 31 14 46 22 1 . 64 7 . . . . . Level 2 19 | . . . . . . 41 7 16 80 35 35 22 . 8 . . . Level 3 21 | . . . . . . 31 . 60 17 64 . 6 100 53 6 . . Level 4 11 | . . . . . . 4 . . . . . 45 . 30 20 13 52 Level 5 17 | . . . . . . . . . . . . 19 . 7 72 86 12 High Security 1 | . . . . . . . . . . . . . . . . . 34 Max Security . | . . . . . . . . . . . . . . . . . . Sterilizations 1 | . . . . . 1 . . . . . . . . . . . . Peak Influence 3012 | . 108 21 . 46 249 1169 619 925 726 1029 539 1736 1000 1912 1931 2395 3012 Initial 1281 | . . 21 . . 1 130 613 225 485 479 539 273 911 686 1003 1281 1246 Average 887 | . 51 13 . 10 155 585 242 685 572 783 379 1150 940 1117 1637 1969 1837 Influence Increases 13835 | . 488 . . 143 499 1149 491 810 740 670 377 1613 249 1236 1604 1214 2552 Destroy 0b10 Robot/C 6400 | . 280 . . 100 260 640 160 460 200 280 180 840 140 600 720 540 1000 Destroy 0b10 Robot/NC 330 | . 30 . . . 5 15 20 10 100 20 20 5 10 15 25 5 50 Destroy Leader 832 | . 68 . . . 92 30 42 30 38 10 94 20 40 30 130 40 168 Allied During Kill 1797 | . . . . 1 . 90 3 9 . 8 30 387 . 347 130 202 590 Successful Hack 187 | . 31 . . 6 2 16 28 14 12 . 28 . 24 14 12 . . Disable Machine 840 | . 15 . . . . . . . 270 15 15 . 15 . 135 . 375 Anti-Garrison Action 1450 | . . . . . . 300 . 200 . 250 . 300 . 100 . 300 . Destroy Structure 797 | . 4 . . 36 23 58 . 42 45 57 10 46 5 25 202 22 222 Lose Combat Pursuer 510 | . 60 . . . 15 . . 45 75 30 . 15 15 105 30 105 15 Miscellaneous 692 | . . . . . 102 . 238 . . . . . . . 220 . 132 Influence Decreases 10863 | . 433 54 1 137 304 181 1338 207 980 326 1016 267 1005 304 1685 670 1955 Entered New Map 5724 | . . 34 1 . 5 71 556 97 440 206 490 117 825 294 909 550 1129 Time Decay 3013 | . 413 20 . 101 229 . 362 . 380 . 506 . 170 . 586 . 246 Search Patrol Dispatched 100 | . . . . . . . 100 . . . . . . . . . . Lost Part 856 | . 20 . . 36 70 50 . 90 130 40 . 20 10 10 110 . 270 Lost Ally 870 | . . . . . . 60 20 20 30 80 20 130 . . 80 120 310 Purge Threat 300 | . . . . . . . 300 . . . . . . . . . . Squads Dispatched 48 | . 2 . . . 6 . 3 . 2 . 4 . 3 . 12 . 16 Investigation 3 | . . . . . 1 . . . . . . . . . 1 . 1 Extermination 8 | . . . . . . . 1 . 1 . 3 . . . 3 . . Reinforcement 12 | . 2 . . . 2 . . . 1 . 1 . . . 2 . 4 Assault 14 | . . . . . . . . . . . . . . . 6 . 8 Garrison 11 | . . . . . 3 . 2 . . . . . 3 . . . 3 Intercept . | . . . . . . . . . . . . . . . . . . Searches Triggered 1 | . . . . . . . 1 . . . . . . . . . . Construction Impeded 2 | . . . . . . . . . 1 . . . . . . . 1 Haulers Reinforced 1 | . . . . . . . . . . . . . . . . . 1 Active Scanning Responses . | . . . . . . . . . . . . . . . . . . Cargo Convoy Interrupts 2 | . . . . . . . . . 1 . . . . . . . 1 Stealth | -11 -10 -10 -10 -9 -8 -8 -7 -7 -7 -7 -6 -6 -6 -6 -5 -5 -5 --------- Run | Yrd Mat Min Exi Min Mat Gar Fac Gar Fac Gar Fac Gar Fac Gar Fac Gar Fac Distress Signals 17 | . 1 . . . 3 . . . 3 . . . . . 4 1 5 Communications Jammed . | . . . . . . . . . . . . . . . . . . Distress Signals . | . . . . . . . . . . . . . . . . . . Times Spotted 474 | . 28 . . 28 15 28 10 37 39 23 12 40 10 33 56 47 68 Peak Tracking Total 20 | . 3 . . 20 4 5 3 7 14 7 2 7 3 9 7 7 11 Tactical Retreats 24 | . 3 . . 1 1 . . 3 3 2 . 1 1 1 2 5 1 Traps | -11 -10 -10 -10 -9 -8 -8 -7 -7 -7 -7 -6 -6 -6 -6 -5 -5 -5 ------- Run | Yrd Mat Min Exi Min Mat Gar Fac Gar Fac Gar Fac Gar Fac Gar Fac Gar Fac Traps Triggered 39 | . 1 . . . . 7 . 9 . 4 3 5 . 1 3 6 . Indirectly . | . . . . . . . . . . . . . . . . . . Trap Hack Attempts . | . . . . . . . . . . . . . . . . . . Triggered . | . . . . . . . . . . . . . . . . . . Disarmed . | . . . . . . . . . . . . . . . . . . Reprogrammed . | . . . . . . . . . . . . . . . . . . Reused . | . . . . . . . . . . . . . . . . . . Traps Extracted . | . . . . . . . . . . . . . . . . . . Installed . | . . . . . . . . . . . . . . . . . . Triggered . | . . . . . . . . . . . . . . . . . . Machines | -11 -10 -10 -10 -9 -8 -8 -7 -7 -7 -7 -6 -6 -6 -6 -5 -5 -5 ---------- Run | Yrd Mat Min Exi Min Mat Gar Fac Gar Fac Gar Fac Gar Fac Gar Fac Gar Fac Machines Disabled 72 | . 1 . . . . 1 . 2 18 4 1 4 1 2 9 4 25 Max in Single Turn 10 | . 1 . . . . 1 . 1 10 1 1 1 1 1 1 1 3 Garrison Access 1 | . . . . . . . . . . . . . . . . . 1 Garrison Relay 16 | . . . . . . 1 . 3 . 3 . 4 . 2 . 3 . Phase Generator 2 | . . . . . . . . . . 1 . . . 1 . . . Machines Repaired . | . . . . . . . . . . . . . . . . . . Machines Dismantled . | . . . . . . . . . . . . . . . . . . Machines Sabotaged . | . . . . . . . . . . . . . . . . . . Overloaded Fab Kills . | . . . . . . . . . . . . . . . . . . Hacking | -11 -10 -10 -10 -9 -8 -8 -7 -7 -7 -7 -6 -6 -6 -6 -5 -5 -5 --------- Run | Yrd Mat Min Exi Min Mat Gar Fac Gar Fac Gar Fac Gar Fac Gar Fac Gar Fac Machines Accessed 53 | . 7 . 1 1 4 2 4 1 5 . 8 1 4 2 9 1 3 Terminals 29 | . 6 . . 1 3 2 2 1 1 . 3 1 1 2 5 1 . Fabricators 6 | . . . . . . . 1 . 2 . 2 . 1 . . . . Repair Stations 2 | . . . . . . . . . . . . . . . 1 . 1 Recycling Units 5 | . 1 . . . . . . . 1 . 1 . . . 2 . . Scanalyzers 3 | . . . . . . . . . . . 1 . 1 . . . 1 Garrison Access 7 | . . . . . 1 . 1 . 1 . 1 . 1 . 1 . 1 Total Hacks 116 | . 22 . 4 6 10 3 11 2 7 . 17 2 7 3 14 2 6 Successful 57 | . 14 . 4 3 5 1 6 1 3 . 10 . 3 2 3 . 2 Failed 59 | . 8 . . 3 5 2 5 1 4 . 7 2 4 1 11 2 4 Catastrophic 11 | . . . . . 1 1 . . 2 . . 1 1 . 4 1 . Database Lockouts . | . . . . . . . . . . . . . . . . . . Manual 51 | . 15 . . 5 8 . 3 . 2 . 4 . 4 . 9 . 1 Terminals 72 | . 21 . . 6 8 3 6 2 2 . 6 2 2 3 9 2 . Fabricators 12 | . . . . . . . 1 . 3 . 6 . 2 . . . . Repair Stations 4 | . . . . . . . . . . . . . . . 1 . 3 Recycling Units 6 | . 1 . . . . . . . 1 . 1 . . . 3 . . Scanalyzers 7 | . . . . . . . . . . . 3 . 2 . . . 2 Garrison Access 11 | . . . . . 2 . 4 . 1 . 1 . 1 . 1 . 1 Terminal Hacks 27 | . 10 . 4 3 1 1 3 1 . . 2 . . 2 . . . Record 5 | . . . 4 1 . . . . . . . . . . . . . Robot Analysis 7 | . 6 . . . . . 1 . . . . . . . . . . Prototype ID Bank 6 | . 3 . . 2 . . . . . . 1 . . . . . . Emergency Access Points 2 | . . . . . . . . 1 . . . . . 1 . . . Unreport Threat 2 | . . . . . . . 2 . . . . . . . . . . Locate Traps 3 | . 1 . . . 1 . . . . . 1 . . . . . . Security Stations 2 | . . . . . . 1 . . . . . . . 1 . . . Fabricator Hacks 4 | . . . . . . . 1 . 1 . 2 . . . . . . Network Status 2 | . . . . . . . 1 . . . 1 . . . . . . Build 2 | . . . . . . . . . 1 . 1 . . . . . . Repair Station Hacks . | . . . . . . . . . . . . . . . . . . Recycling Unit Hacks 2 | . 1 . . . . . . . . . . . . . 1 . . Retrieve Components 2 | . 1 . . . . . . . . . . . . . 1 . . Scanalyzer 4 | . . . . . . . . . . . 3 . 1 . . . . Retrieve Study 4 | . . . . . . . . . . . 3 . 1 . . . . Garrison Access Hacks 7 | . . . . . 1 . 1 . 1 . 1 . 1 . 1 . 1 Unlock Access 6 | . . . . . 1 . 1 . 1 . 1 . 1 . 1 . . Seal Access 1 | . . . . . . . . . . . . . . . . . 1 Unauthorized Hacks 13 | . 3 . . . 3 . 1 . 1 . 2 . 1 . 1 . 1 Terminals 7 | . 3 . . . 2 . . . 1 . . . 1 . . . . Botnet 7 | . 3 . . . 2 . . . 1 . . . 1 . . . . Fabricators 2 | . . . . . . . . . . . 2 . . . . . . Report 1 | . . . . . . . . . . . 1 . . . . . . Liberate 1 | . . . . . . . . . . . 1 . . . . . . Repair Stations 2 | . . . . . . . . . . . . . . . 1 . 1 Mechanics 2 | . . . . . . . . . . . . . . . 1 . 1 Recycling Units . | . . . . . . . . . . . . . . . . . . Scanalyzers . | . . . . . . . . . . . . . . . . . . Garrison Access 2 | . . . . . 1 . 1 . . . . . . . . . . Restock 2 | . . . . . 1 . 1 . . . . . . . . . . Data Cores Recovered 4 | . 1 . . . . . 2 . 1 . . . . . . . . Used 3 | . 1 . . . . . 1 . 1 . . . . . . . . Hacking Detections 43 | . 7 . . 1 3 2 2 1 4 . 6 1 4 1 8 1 2 Full Trace Events 2 | . . . . . . 1 . . . . . . . . . 1 . Feedback Events . | . . . . . . . . . . . . . . . . . . Feedback Blocked . | . . . . . . . . . . . . . . . . . . Robot Schematics Acquired . | . . . . . . . . . . . . . . . . . . Robots Built 1 | . . . . . . . . . . . 1 . . . . . . Authchips . | . . . . . . . . . . . . . . . . . . Time 134 | . . . . . . . . . . . 134 . . . . . . Total Robot Build Rating 4 | . . . . . . . . . . . 4 . . . . . . Part Schematics Acquired . | . . . . . . . . . . . . . . . . . . Parts Built 2 | . . . . . . . . . 2 . . . . . . . . Authchips . | . . . . . . . . . . . . . . . . . . Time 95 | . . . . . . . . . 95 . . . . . . . . Total Part Build Rating 10 | . . . . . . . . . 10 . . . . . . . . Part Studies Acquired 4 | . . . . . . . . . . . 3 . 1 . . . . Parts Repaired . | . . . . . . . . . . . . . . . . . . Time . | . . . . . . . . . . . . . . . . . . Parts Recycled . | . . . . . . . . . . . . . . . . . . Recycled Matter . | . . . . . . . . . . . . . . . . . . Retrieved Matter . | . . . . . . . . . . . . . . . . . . Retrieved Components 12 | . 2 . . . . . . . . . . . . . 10 . . Parts Scanalyzed . | . . . . . . . . . . . . . . . . . . Part Schematics Acquired . | . . . . . . . . . . . . . . . . . . Parts Damaged . | . . . . . . . . . . . . . . . . . . Bothacking | -11 -10 -10 -10 -9 -8 -8 -7 -7 -7 -7 -6 -6 -6 -6 -5 -5 -5 ------------ Run | Yrd Mat Min Exi Min Mat Gar Fac Gar Fac Gar Fac Gar Fac Gar Fac Gar Fac Used RIF Installer 7 | . . . . . . 1 . 1 . 1 . 2 . 1 . 1 . Coupler Efficiency 2 | . . . . . . . . . . 1 . . . . . 1 . Code Merge 2 | . . . . . . . . . . . . 2 . . . . . Watcher Feeds 1 | . . . . . . . . . . . . . . 1 . . . Structural Interface 1 | . . . . . . . . 1 . . . . . . . . . Crosswire 1 | . . . . . . 1 . . . . . . . . . . . Robots Hacked 78 | . . . . . . . . 7 6 8 4 6 1 7 13 12 14 Non-combat 17 | . . . . . . . . . 3 . 4 1 1 . 4 . 4 Combat 61 | . . . . . . . . 7 3 8 . 5 . 7 9 12 10 Robot Hacks Applied 84 | . . . . . . . . 8 6 8 4 6 1 8 13 13 17 parse_system 8 | . . . . . . . . 1 1 . . . . 1 . 2 3 generate_echo 1 | . . . . . . . . . 1 . . . . . . . . drop_inventory 5 | . . . . . . . . . . . 1 1 1 . . . 2 block_reporting 2 | . . . . . . . . . . . 1 . . . 1 . . map_route 4 | . . . . . . . . . 1 . 1 . . . 1 . 1 find_garrison 1 | . . . . . . . . . . . . . . . . . 1 disrupt_area 1 | . . . . . . . . . . . . 1 . . . . . amplify_resonance 21 | . . . . . . . . 6 1 . . 1 . 3 6 3 1 overwrite_iff 8 | . . . . . . . . . 1 3 . 1 . 1 . . 2 formatsys_low 4 | . . . . . . . . . 1 . 1 . . . 1 . 1 formatsys_high 28 | . . . . . . . . 1 . 5 . 2 . 3 4 8 5 formatsys_deep 1 | . . . . . . . . . . . . . . . . . 1 Relay Couplers Released 74 | . . . . . 4 4 3 11 . 11 . 15 . 10 . 16 . Machine Destruction 63 | . . . . . . 4 . 11 . 11 . 15 . 10 . 12 . Programmers 11 | . . . . . 4 . 3 . . . . . . . . 4 . Attached 22 | . . . . . . . . 3 1 4 . 3 . 2 1 5 3 Crosswired 25 | . . . . . . 1 . 4 . 4 . 6 . 1 . 9 . Merged Code Value 280 | . . . . . . . . . . . . 116 . 14 . 150 . Fabnet Peak Effective % . | . . . . . . . . . . . . . . . . . . Robots Rewired 13 | . . . . . . 8 . . . . . . . 2 . 3 . Allies Hacked 1 | . . . . . . . . . 1 . . . . . . . . Hacks Repelled . | . . . . . . . . . . . . . . . . . . Allies | -11 -10 -10 -10 -9 -8 -8 -7 -7 -7 -7 -6 -6 -6 -6 -5 -5 -5 -------- Run | Yrd Mat Min Exi Min Mat Gar Fac Gar Fac Gar Fac Gar Fac Gar Fac Gar Fac Total Allies 73 | . . . . 1 . 8 . 2 2 8 7 5 . 6 6 13 15 Largest Group 12 | . . . . 1 . 5 3 2 1 3 6 11 . 5 4 8 12 Highest-Rated Group 602 | . . . . 18 . 99 63 132 23 57 219 463 . 415 386 501 602 Highest-Rated Ally 119 | . . . . 18 . 24 21 116 23 30 41 95 . 119 119 119 119 Total Orders 10 | . . . . . . . . . 1 2 1 4 . . 1 . 1 STAY 2 | . . . . . . . . . . 1 . 1 . . . . . FOLLOW 2 | . . . . . . . . . . 1 . 1 . . . . . AID 6 | . . . . . . . . . 1 . 1 2 . . 1 . 1 Ally Attacks 549 | . . . . 2 . 24 4 14 2 23 9 111 . 25 42 109 184 Total Damage 16951 | . . . . 60 . 479 73 458 17 281 202 3014 . 829 2425 2917 6196 Kills 123 | . . . . 1 . 8 . 4 . 3 2 21 . 11 19 14 40 Allies Corrupted 2 | . . . . . . . . . . . 1 . . . 1 . . Allies Melted 2 | . . . . . . . . . . . . . . . . . 2 X0-1V1 Amusement Gains 138 | . 10 . . 20 5 10 . 20 10 50 5 2 . 1 . 5 . Good Acts 97 | . 1 . . 4 3 8 3 9 9 8 4 9 1 3 12 14 9 Bad Acts 52 | . . . . . 4 5 1 6 7 1 . 8 3 5 4 . 8 Intel | -11 -10 -10 -10 -9 -8 -8 -7 -7 -7 -7 -6 -6 -6 -6 -5 -5 -5 ------- Run | Yrd Mat Min Exi Min Mat Gar Fac Gar Fac Gar Fac Gar Fac Gar Fac Gar Fac Active Infowar (turns) 54 | . . . . . . . . . . . . . . . . . 54 Decoding 54 | . . . . . . . . . . . . . . . . . 54 Robot Analysis Total 7 | . 6 . . . . . 1 . . . . . . . . . . Derelict Logs Recovered . | . . . . . . . . . . . . . . . . . . Drone Launches . | . . . . . . . . . . . . . . . . . . Drone Recoveries . | . . . . . . . . . . . . . . . . . . Decoded 0b10 Intel 1 | . . . . . . . . . . . . . . . . . 1 Guards 1 | . . . . . . . . . . . . . . . . . 1 Exploration | -11 -10 -10 -10 -9 -8 -8 -7 -7 -7 -7 -6 -6 -6 -6 -5 -5 -5 ------------- Run | Yrd Mat Min Exi Min Mat Gar Fac Gar Fac Gar Fac Gar Fac Gar Fac Gar Fac Turns Passed 17721 | 57 1149 47 398 457 501 1888 827 1537 884 1690 1377 1558 347 860 1832 1494 818 Spaces Moved 9050 | 39 581 30 247 221 188 741 520 659 542 710 1089 885 145 414 890 749 400 Core 88 | 12 . . . . . . . . 59 17 . . . . . . . Treads 4785 | . 347 30 247 221 16 185 . 6 4 501 . 662 145 414 890 749 368 Legs 3209 | 27 234 . . . . 488 520 430 . 192 1089 223 . . . . 6 Wheels 942 | . . . . . 172 68 . 223 479 . . . . . . . . Hover 26 | . . . . . . . . . . . . . . . . . 26 Flight . | . . . . . . . . . . . . . . . . . . Fastest Speed 50 | 50 120 160 160 160 105 130 120 120 50 50 103 105 157 152 162 145 62 Average Speed 153 | 107 144 160 160 160 126 192 130 182 118 197 109 149 174 154 163 163 142 Slowest Speed 480 | 120 190 160 160 160 240 400 185 480 320 225 180 270 225 157 170 165 250 Overloaded Moves . | . . . . . . . . . . . . . . . . . . Propulsion Burnouts . | . . . . . . . . . . . . . . . . . . Robots Hopped . | . . . . . . . . . . . . . . . . . . Potential Cave-ins 2 | . . . . . . . . . . . . . . . 2 . . Cave-ins Triggered . | . . . . . . . . . . . . . . . . . . Exploration Rate (%) 45 | 3 94 9 64 50 10 80 15 56 20 74 25 91 4 65 29 96 26 Regions Visited 17 Branch Regions 3 Pre-discovered Areas 1 | . . . 1 . . . . . . . . . . . . . . Known Exits Taken 6 | . . . . . 1 . 1 . 1 . 1 . 1 . 1 . . Unknown Exits Taken 5 | 1 1 1 1 1 . . . . . . . . . . . . . Scrap Searched . | . . . . . . . . . . . . . . . . . . Spaces Dug 18 | . . . . . . . . 1 . 3 3 . . . 7 . 4 Terrain Destroyed 375 | . 1 . . 54 19 23 . 11 40 35 9 23 4 31 64 10 51 Melee . | . . . . . . . . . . . . . . . . . . Projectile 123 | . . . . . . . . 11 11 17 9 14 4 10 24 10 13 AOE 252 | . 1 . . 54 19 23 . . 29 18 . 9 . 21 40 . 38 Terrain Rammed . | . . . . . . . . . . . . . . . . . . Walls Destroyed . | . . . . . . . . . . . . . . . . . . Machines Disabled . | . . . . . . . . . . . . . . . . . . Actions | -11 -10 -10 -10 -9 -8 -8 -7 -7 -7 -7 -6 -6 -6 -6 -5 -5 -5 --------- Run | Yrd Mat Min Exi Min Mat Gar Fac Gar Fac Gar Fac Gar Fac Gar Fac Gar Fac Total 11617 | 51 751 29 252 274 368 1008 640 877 697 907 1223 1046 206 569 1174 963 582 Wait 760 | . 66 . . 5 102 20 66 44 57 55 48 37 25 74 78 39 44 Move 9036 | 38 580 29 246 220 187 740 519 658 542 709 1088 884 145 413 890 748 400 Hop . | . . . . . . . . . . . . . . . . . . Pick Up 165 | 7 12 . 2 4 10 14 10 17 7 9 16 13 2 2 13 17 10 Fast Attach 105 | 5 3 . . 1 4 2 2 5 8 18 11 9 1 4 11 9 12 Attach 100 | 1 2 . . 6 8 4 3 11 6 8 2 4 1 1 14 8 21 Detach 21 | . 2 . . . 1 . . 4 2 1 . . . . 2 4 5 Swap 95 | . 7 . . 1 8 19 7 8 3 7 4 8 . 3 7 9 4 Drop 158 | . 5 . 4 . 8 11 11 17 5 11 13 24 2 4 11 23 9 Fire 945 | . 69 . . 31 40 105 18 87 60 71 37 62 29 55 145 63 73 Melee . | . . . . . . . . . . . . . . . . . . Ram 6 | . . . . . . . . . 6 . . . . . . . . Kick 14 | . 2 . . . . 4 4 . . . 4 . . . . . . Crush 22 | . 3 . . 5 . . . . 1 . . . 1 6 3 1 2 Escape Stasis 56 | . . . . . . 17 . 23 . 11 . 5 . . . . . Rewire 134 | . . . . 1 . 72 . 3 . 7 . . . 7 . 42 2 Trap . | . . . . . . . . . . . . . . . . . . Miscellaneous . | . . . . . . . . . . . . . . . . . . Route ------- -11/Scrapyard -10/Materials (discovered 5 exits: [*Mat x3] / [*Min] / [*Sub]) -10/Mines -10/Exiles -9/Mines -8/Materials -8/Garrison (discovered 3 exits: *Fac x3) -7/Factory (discovered 3 exits: *Fac x2 / Gar) -7/Garrison (discovered 3 exits: *Fac x3) -7/Factory -7/Garrison (discovered 2 exits: *Fac x2) -6/Factory (discovered 4 exits: *Fac x2 / [*Low] / Gar) -6/Garrison (discovered 3 exits: *Fac x3) -6/Factory (discovered 3 exits: *Fac x2 / Gar) -6/Garrison (discovered 2 exits: *Fac x2) -5/Factory (discovered 4 exits: [*Fac] / [*Upp] / Ext / Gar) -5/Garrison (discovered 3 exits: *Fac x3) -5/Factory (discovered 1 exit: [Fac]) History --------- Turn | Location | Event 2 | -11/Scrapyard | Met Revision 17 18 | -11/Scrapyard | Discovered new exit (range 14) 58 | -11/Scrapyard | Entered Materials 123 | -10/Materials | Discovered new exit (range 5) 324 | -10/Materials | Build established: Mutant 486 | -10/Materials | Discovered new exit (range 11) 638 | -10/Materials | Discovered new exit (range 9) 708 | -10/Materials | Discovered new exit (range 8) 1036 | -10/Materials | Prayed at D.C.S.S. Altar Unit 1079 | -10/Materials | Core integrity permanently improved by X0-1V1 (+200) 1109 | -10/Materials | Discovered new exit (range 8) 1207 | -10/Materials | Entered Mines 1247 | -10/Mines | Deemed a non-threat by the Exiles lab entrance 1247 | -10/Mines | Discovered new exit (range 5) 1254 | -10/Mines | Entered Exiles 1302 | -10/Exiles | Met 8R-AWN 1327 | -10/Exiles | Met EX-HEX 1375 | -10/Exiles | Met EX-BIN 1422 | -10/Exiles | Met EX-DEC 1431 | -10/Exiles | Learned location of Zion (-6) 1636 | -10/Exiles | Discovered new exit (range 10) 1652 | -10/Exiles | Entered Mines 1653 | -9/Mines | Assembled infested the area 1658 | -9/Mines | Assisted by a Guerilla fighting off Assembled 1700 | -9/Mines | Destroyed 16 combat bots 1731 | -9/Mines | Core integrity fell below 50% 1758 | -9/Mines | Lost 4 parts (1p2n1w) 1846 | -9/Mines | X0-1V1 turns hostiles against one another 1867 | -9/Mines | Core integrity fell below 20% 1945 | -9/Mines | Ranged accuracy permanently improved by X0-1V1 (+5%; -50 max core) 2074 | -9/Mines | Discovered new exit (range 5) 2109 | -9/Mines | Entered Materials 2109 | -8/Materials | Evolved 4 slots: Propulsion x1, Utility x2, Weapon x1 2139 | -8/Materials | X0-1V1 added 0b10 threat records associated with you (minor) 2263 | -8/Materials | Garrison activated, responded to threat 2307 | -8/Materials | Identified exit to Garrison 2489 | -8/Materials | X0-1V1 made a cryptic comment about sterilization and BL-4Z3 2606 | -8/Materials | Sterilization system engaged 2606 | -8/Materials | Non-combat units ordered to evacuate 2610 | -8/Materials | Entered Garrison 2643 | -8/Garrison | Installed Relay Interface Framework 2739 | -8/Garrison | Triggered checkpoint 2777 | -8/Garrison | Triggered checkpoint 2797 | -8/Garrison | Build established: Scavenger-Tank 2816 | -8/Garrison | Triggered checkpoint 2837 | -8/Garrison | Destroyed 9 combat bots 2842 | -8/Garrison | Lost 3 parts (1n1u1w) 2870 | -8/Garrison | EM resistance permanently improved by X0-1V1 (+15%; -150 max core) 2883 | -8/Garrison | X0-1V1 activates XOMVISION 3248 | -8/Garrison | X0-1V1 rewrote Shotgunner 3b IFF filter 3423 | -8/Garrison | Discovered new exit (range 10) 3565 | -8/Garrison | Expanded RIF knowledge: Crosswire 3599 | -8/Garrison | Identified exit to Factory 3599 | -8/Garrison | X0-1V1 revealed exit location to -7/Factory 3603 | -8/Garrison | X0-1V1 rewrote Commando 3b IFF filter 3879 | -8/Garrison | Garrison Relay disabled 3974 | -8/Garrison | Triggered checkpoint 4028 | -8/Garrison | Discovered exit to Factory (range 14) 4120 | -8/Garrison | Triggered checkpoint 4228 | -8/Garrison | Triggered checkpoint 4425 | -8/Garrison | Learned Factory security intel 4498 | -8/Garrison | Entered Factory 4498 | -7/Factory | Accompanied by 3 allies 4498 | -7/Factory | Evolved 2 slots: Propulsion x1, Utility x1 4601 | -7/Factory | X0-1V1 released a cloud of subatomizers 4754 | -7/Factory | Discovered new exit (range 15) 4951 | -7/Factory | Build established: Scavenger-Gunner 5101 | -7/Factory | Identified exit to Factory 5101 | -7/Factory | X0-1V1 revealed exit location to -6/Factory 5117 | -7/Factory | X0-1V1 added 0b10 threat records associated with you (major) 5195 | -7/Factory | Identified exit to Garrison 5198 | -7/Factory | Garrison activated, responded to threat 5298 | -7/Factory | Search patrols dispatched 5325 | -7/Factory | Entered Garrison 5357 | -7/Garrison | Triggered checkpoint 5403 | -7/Garrison | Garrison Relay disabled 5618 | -7/Garrison | Garrison Relay disabled 5629 | -7/Garrison | Identified exit to Factory 5629 | -7/Garrison | X0-1V1 revealed exit location to -7/Factory 5686 | -7/Garrison | Build established: Bothacker-Gunner 5772 | -7/Garrison | X0-1V1 sent allied B-86 Titan (x1) 5773 | -7/Garrison | Triggered checkpoint 5809 | -7/Garrison | Lost 3 parts (1p1n1u) 5836 | -7/Garrison | X0-1V1 rewrote B-86 Titan IFF filter 5839 | -7/Garrison | Spotted B-86 Titan 5917 | -7/Garrison | Triggered checkpoint 5949 | -7/Garrison | Triggered checkpoint 5980 | -7/Garrison | X0-1V1 revealed exit location to -7/Factory 6064 | -7/Garrison | System corruption reached 10% 6085 | -7/Garrison | Lost 3 parts (2n1w) 6347 | -7/Garrison | Triggered checkpoint 6402 | -7/Garrison | Expanded RIF knowledge: Structural Interface 6730 | -7/Garrison | Discovered exit to Factory (range 12) 6862 | -7/Garrison | Entered Factory 7198 | -7/Factory | X0-1V1 activates XOMVISION 7321 | -7/Factory | Fabricated Phase Cannon? 7415 | -7/Factory | Core integrity fell below 50% 7434 | -7/Factory | X0-1V1 upgraded hostiles (x2) 7476 | -7/Factory | Core integrity restored by X0-1V1 (+147) 7484 | -7/Factory | Lost 4 parts (2n1u1w) 7607 | -7/Factory | Core integrity restored by X0-1V1 (+147) 7652 | -7/Factory | Cargo convoy interrupted 7661 | -7/Factory | X0-1V1 sent hostile G-47 Trooper (x4) 7706 | -7/Factory | Released all parts (5) 7725 | -7/Factory | Core integrity fell below 20% 7736 | -7/Factory | Lost 7 parts (1p3n1u2w) 7746 | -7/Factory | Identified exit to Garrison 7746 | -7/Factory | Entered Garrison 7836 | -7/Garrison | Triggered checkpoint 7938 | -7/Garrison | Garrison Relay disabled 8032 | -7/Garrison | Expanded RIF knowledge: Coupler Efficiency 8159 | -7/Garrison | Build established: Gunner 8282 | -7/Garrison | Triggered checkpoint 8298 | -7/Garrison | Lost 3 allies 8352 | -7/Garrison | Core integrity restored by X0-1V1 (+189) 8401 | -7/Garrison | Triggered checkpoint 8654 | -7/Garrison | X0-1V1 destroyed Phase Generator 8654 | -7/Garrison | Phase Generator disabled 8699 | -7/Garrison | Garrison Relay disabled 8792 | -7/Garrison | Core integrity restored by X0-1V1 (+189) 8817 | -7/Garrison | Build established: Scavenger-Gunner 8848 | -7/Garrison | Triggered checkpoint 8866 | -7/Garrison | Discovered exit to Factory (range 11) 9092 | -7/Garrison | Triggered checkpoint 9160 | -7/Garrison | Triggered checkpoint 9261 | -7/Garrison | X0-1V1 activates XOMVISION 9348 | -7/Garrison | Garrison Relay disabled 9399 | -7/Garrison | Discovered exit to Factory (range 12) 9436 | -7/Garrison | Entered Factory 9436 | -6/Factory | Accompanied by 2 allies 9436 | -6/Factory | Evolved 2 slots: Utility x2 9692 | -6/Factory | Discovered new exit (range 13) 9825 | -6/Factory | Fabricated I-36 Angel? 10026 | -6/Factory | Discovered new exit (range 12) 10512 | -6/Factory | X0-1V1 sent you to a vault 10611 | -6/Factory | Identified exit to Garrison 10783 | -6/Factory | Discovered new exit (range 51) 10810 | -6/Factory | Build established: Commander-Tank 10813 | -6/Factory | Entered Garrison 10813 | -6/Garrison | Accompanied by 6 allies 10834 | -6/Garrison | Identified exit to Factory 10834 | -6/Garrison | X0-1V1 revealed exit location to -6/Factory 10879 | -6/Garrison | Triggered checkpoint 10919 | -6/Garrison | Found embedded Infiltrators 10926 | -6/Garrison | Garrison Relay disabled 10991 | -6/Garrison | Triggered checkpoint 11001 | -6/Garrison | Triggered checkpoint 11027 | -6/Garrison | Triggered checkpoint 11033 | -6/Garrison | Triggered checkpoint 11319 | -6/Garrison | Garrison Relay disabled 11366 | -6/Garrison | Spotted B-75 Beast 11384 | -6/Garrison | Allies destroyed B-75 Beast 11425 | -6/Garrison | Lost 4 allies 11429 | -6/Garrison | Found Relay Coupler [Proto] 11432 | -6/Garrison | Found Relay Coupler [Proto] 11655 | -6/Garrison | Triggered checkpoint 11710 | -6/Garrison | Build established: Bothacker-Tank 11721 | -6/Garrison | Expanded RIF knowledge: Code Merge 11751 | -6/Garrison | Garrison Relay disabled 11772 | -6/Garrison | X0-1V1 rewrote Slayer 5b IFF filter 11787 | -6/Garrison | Garrison Relay disabled 11845 | -6/Garrison | Discovered exit to Factory (range 8) 11954 | -6/Garrison | X0-1V1 mutated your Weapon slot to Power slot 12015 | -6/Garrison | Expanded RIF knowledge: Code Merge 12289 | -6/Garrison | System corruption reached 10% 12293 | -6/Garrison | Discovered exit to Factory (range 9) 12304 | -6/Garrison | Build established: Botlord-Mutant 12306 | -6/Garrison | X0-1V1 mutated your Propulsion slot to Weapon slot 12371 | -6/Garrison | Entered Factory 12440 | -6/Factory | X0-1V1 sent you into danger 12487 | -6/Factory | Discovered new exit (range 16) 12516 | -6/Factory | Garrison activated, responded to threat 12664 | -6/Factory | Build established: Bothacker-Tank 12693 | -6/Factory | Identified exit to Factory 12693 | -6/Factory | X0-1V1 revealed exit location to -5/Factory 12718 | -6/Factory | Identified exit to Garrison 12718 | -6/Factory | Entered Garrison 12752 | -6/Garrison | Expanded RIF knowledge: Watcher Feeds 12780 | -6/Garrison | Triggered checkpoint 12795 | -6/Garrison | Garrison Relay disabled 12868 | -6/Garrison | Triggered checkpoint 12991 | -6/Garrison | X0-1V1 activates XOMVISION 12993 | -6/Garrison | X0-1V1 destroyed Phase Generator 12993 | -6/Garrison | Phase Generator disabled 13074 | -6/Garrison | Build established: Botlord-Tank 13096 | -6/Garrison | Discovered exit to Factory (range 15) 13203 | -6/Garrison | Spotted Executioner 13218 | -6/Garrison | Assimilated Executioner with formatsys_high 13228 | -6/Garrison | Rewired Executioner 13231 | -6/Garrison | Rewired Executioner 13284 | -6/Garrison | Garrison Relay disabled 13338 | -6/Garrison | Triggered checkpoint 13346 | -6/Garrison | Triggered checkpoint 13426 | -6/Garrison | Triggered checkpoint 13492 | -6/Garrison | Learned Factory security intel 13539 | -6/Garrison | Destroyed 7 combat bots 13549 | -6/Garrison | Discovered exit to Factory (range 9) 13578 | -6/Garrison | Entered Factory 13578 | -5/Factory | Accompanied by 4 allies 13578 | -5/Factory | Evolved 2 slots: Propulsion x1, Utility x1 13607 | -5/Factory | X0-1V1 mutated your Weapon slot to Utility slot 13789 | -5/Factory | Discovered new exit (range 13) 13789 | -5/Factory | Allies destroyed Executioner 13858 | -5/Factory | Found Exp. Targeting Computer 13907 | -5/Factory | Build established: Botlord-Mutant 14057 | -5/Factory | X0-1V1 added 0b10 threat records associated with you (considerable) 14115 | -5/Factory | Found Exp. Core Analyzer 14178 | -5/Factory | First assault squad dispatched 14361 | -5/Factory | Discovered new exit (range 11) 14467 | -5/Factory | Weapon slot count temporarily expanded by X0-1V1 (+2) 14469 | -5/Factory | System corruption reached 10% 14503 | -5/Factory | Lost 7 parts (1p2n4u) 14592 | -5/Factory | X0-1V1 sent allied Knight (x1) 14858 | -5/Factory | Build established: Botlord-Gunner 15196 | -5/Factory | Build established: Botlord-Mutant 15285 | -5/Factory | Identified exit to Extension 15285 | -5/Factory | X0-1V1 revealed exit location to -5/Extension 15406 | -5/Factory | Identified exit to Garrison 15410 | -5/Factory | Entered Garrison 15410 | -5/Garrison | Accompanied by 4 allies 15610 | -5/Garrison | Build established: Bothacker-Mutant 15659 | -5/Garrison | Identified exit to Factory 15659 | -5/Garrison | X0-1V1 revealed exit location to -5/Factory 15698 | -5/Garrison | Garrison Relay disabled 15722 | -5/Garrison | Triggered checkpoint 15827 | -5/Garrison | X0-1V1 revealed exit location to -5/Factory 15854 | -5/Garrison | Triggered checkpoint 15876 | -5/Garrison | Lost 3 allies 15977 | -5/Garrison | Build established: Botlord-Mutant 16002 | -5/Garrison | Lost 3 allies 16029 | -5/Garrison | Core integrity restored by X0-1V1 (+270) 16057 | -5/Garrison | Expanded RIF knowledge: Coupler Efficiency 16127 | -5/Garrison | Discovered exit to Factory (range 10) 16155 | -5/Garrison | Spotted Striker 16168 | -5/Garrison | Assimilated Striker with formatsys_high 16175 | -5/Garrison | Rewired Executioner 16212 | -5/Garrison | X0-1V1 activates XOMVISION 16218 | -5/Garrison | Triggered checkpoint 16223 | -5/Garrison | Garrison Relay disabled 16360 | -5/Garrison | Triggered checkpoint 16426 | -5/Garrison | Triggered checkpoint 16503 | -5/Garrison | Garrison Relay disabled 16707 | -5/Garrison | Found embedded Infiltrators 16710 | -5/Garrison | Triggered checkpoint 16904 | -5/Garrison | Entered Factory 16904 | -5/Factory | Accompanied by 6 allies 16982 | -5/Factory | X0-1V1 activates XOMVISION 17026 | -5/Factory | X0-1V1 rewrote Soldier 6e IFF filter 17238 | -5/Factory | P-70 Sage assimilated allied BR-KK5(x) 17280 | -5/Factory | Discovered new exit (range 93) 17288 | -5/Factory | Assimilated ARC 6a with formatsys_deep 17394 | -5/Factory | X0-1V1 added 0b10 threat records associated with you (minor) 17421 | -5/Factory | X0-1V1 sent you to a vault 17438 | -5/Factory | High security lockdown imminent 17454 | -5/Factory | Garrison activated, responded to threat 17469 | -5/Factory | Cargo convoy interrupted 17510 | -5/Factory | X0-1V1 upgraded hostiles (x1) 17518 | -5/Factory | High security lockdown engaged 17569 | -5/Factory | Lost 4 allies 17593 | -5/Factory | Found Prototype Launcher 17595 | -5/Factory | Lost 14 parts (2p2n7u3w) 17602 | -5/Factory | Weapon slot count temporarily expanded by X0-1V1 (+2) 17602 | -5/Factory | Identified Enh. Gamma Bomb Array 17640 | -5/Factory | Lost 4 allies 17641 | -5/Factory | Core integrity fell below 50% 17685 | -5/Factory | Lost 9 parts (1p2n4u2w) 17702 | -5/Factory | Destroyed 11 combat bots 17703 | -5/Factory | Core integrity fell below 20% 17722 | -5/Factory | Destroyed by G-50 Soldier with Heavy Laser Last Messages --------------- 17708_ Acquired Hvy. Hardcell Cannon. 17710_ Acquired 7 matter. 17711_ >> Watcher Feeds: Feed link from W-25 Informer lost. 17711_ Acquired 2 matter. 17712_ Penetrated by Slug. 17712_ Slug penetrates P-70 Sage. 17714_ >> Watcher Feeds: Feed link from W-25 Informer lost. 17714_ Penetrated by Slug. 17714_ Lgt. Antimatter Reactor destroyed. 17714_ Slug penetrates P-70 Sage. 17715_ Penetrated by Slug. 17717_ >> Watcher Feeds: Established visual feed link with W-25 Informer. 17717_ Slug penetrates Subcomponent Replicator. 17717_ P-70 Sage resets P-70 Sage, system corruption cleaned. 17719_ >> Watcher Feeds: Established visual feed link with W-25 Informer. 17720_ Slug penetrates Wall. 17720_ Penetrated by Slug. 17722_ Flexi-carbon Leg destroyed. 17722_ M-28 Smith repairs P-70 Sage. 17722_ X0-1V1 bursts into laughter! Map ----- +----------------------------------------------------+ | ???????????# % % % # ??????? | | ???????????# % ^"""?????? | | ???????????# % % % # """?????? | | ???????????# [ !%% % """?????? | | ?????????###===!%!% ?????? | | ?????????# #%%% !! % # " " ????? | | ?????????#[!*%[ &%[ % "T" ? ???? | | ????????####=[*]%%[ * ""???????? | | #########/!=]!=[[[ = % ???????? | | =*%=! =*=% !%*=!! % #####??????? | | "[==* ![%%[ ==%=!%! = % #??????????? | | %/= ==%!![!*!!!!% #??????????? | | ###"#%###[*[=*[ =! #??????????? | | ????#???####!==* m # # # #??????????? | | ???????????##########hpp % #??????????? | | ????????????????????# ###?????????????? | | ????????????????????# """ """ #???????????????? | | ????????????????????# """ """ ????????????????? | | ????????????????????# """ """ #???????????????? | | ###############?????# #???????? ????? | | #???# """ """ #???????? #???? | | #???# """ """ #???????? #???? | | """ """ """ T#??# """ """ #???????? #???? | | """ """ """ #??# #???????# #???? | | """ """ """ ##??# #???????# #???? | | #???# @! #???????# #???? | | """ """ """ #???#####%########???????# #???? | | """ """ """ #???????#=#??????????????# #???? | | """ """ """ #??????? ??????????????# #???? | | w #??????? " ??????#??????# #???? | | """ """ """ #???#??? " ????## ?????# #???? | | """ """ """ #???# """ ??? #? ????# +???? | | """ """ """ #???# """ " #?? ???# #???? | | #???# g""""%" #??##/### #???? | | #???# " #### #???? | | #### #???# + #???? | | ???# #???# % #### #???? | | ???# #???# #??# ### ##???? | | ???# #???# = #?## ###/###### | | ???# #???# #?#! # # | | ???# ###########+######## # # | | ???# w %= ! + # | | ???# ###### ! ####+#### | | ???# #????# = #??# #??? | | ???# #????### ###??# #??? | | ???# #??????# #????# #### | | ???# ##########+#######???# #????# # | | ?????? #?????# ????# #????# # | | ?????? #?????# """ ??????# #????# # | | ??????? ####### """ ????###+###### # | +----------------------------------------------------+ Best States ------------- Heat Dissipation 78 Energy Generation 60 Energy Capacity 2085 Matter Stores 1000 Matter Capacity 1000 Sight Range 21 Terrain Scan Density 10 Armor Coverage 1200 Resistance: KI 30 Resistance: TH 15 Resistance: EM 15 Core Shielding 30 Weapon Cycling 20 Melee Speed Boost 20 Phase Shifting 15 Evasion (%) 70 Targeting Accuracy 12 Target Analysis 5 Core Analysis 8 Recoil Reduction 4 Kinecelleration 40 Offensive Hacking 10 Defensive Hacking 10 Relay Coupler Types 6 Relay Coupler Value 229 Item Schematics ----------------- None Robot Schematics ------------------ None Fabricated ------------ Phase Cannon | x2 | -7/Factory | Preloaded I-36 Angel | x1 | -6/Factory | Preloaded Repaired ---------- Nothing Studied --------- Arm. Wheel | -6/Factory | Hacked Remote Datajack | -6/Factory | Hacked Hvy. Rocket Launcher | -6/Factory | Hacked Arm. Treads | -6/Factory | Hacked Alien Tech Used ----------------- None Achievements -------------- None Challenges ------------ None Game ------ Seed LightLinkedNanovents Manual? 0 Play Time 02:55:10 Cumulative 509.3 hours Start 2026.07.26 @ 00:46:18 End 2026.07.26 @ 04:47:45 Sessions 3 Manual Loads 0 Difficulty Rogue Special Mode None Game No. 259 Rogue 259 Adventurer 0 Explorer 0 Win Type - Total 16 Types 10/0/2/1/0/0/0/1/0/2 Lore% 86 Gallery% 81 Achievement% 69 Wizard Run 0 Options --------- Layout 0 ASCII 0 Keyboard 0 Movement Mouse Keybinds 0 Fullscreen 1 Font 18/SmallcapsGlow Map View 76x50 Zoom Use 0% Tactical HUD 1 Map Filters NONE Filters NONE Steam 1 RUN: 3ef8e99b-3d16-430c-8874-b05cd6b56d66